fUSD/lending_fUSD_20260327
["ID","MTS","AMOUNT","RATE_DAILY","PERIOD"]
[418947969,1774618250678,-500.0,0.00041643,17]
[418947970,1774618250688,-474.45807089,0.00041643,17]
[418947971,1774618250697,-247.62881508,0.00041643,17]
[418947972,1774618250706,-547.37734205,0.00041643,17]
[418947973,1774618250715,-363.34501283,0.00041643,2]
[418947974,1774618250724,-500.0,0.00041643,17]
[418947975,1774618250733,-537.2752117,0.00041643,17]
[418947976,1774618250742,-500.0,0.00041643,17]
[418947977,1774618250752,-500.0,0.00041643,17]
[418947978,1774618250761,-500.0,0.00041643,17]
[418947979,1774618250771,-500.0,0.00041643,17]
[418947980,1774618250780,-500.0,0.00041643,17]
[418947981,1774618250789,-500.0,0.00041643,17]
[418947982,1774618250799,-500.0,0.00041643,17]
[418947983,1774618250808,-500.0,0.00041643,17]
[418947984,1774618250817,-546.03,0.00041643,17]
[418947985,1774618250826,-500.0,0.00041643,17]
[418947986,1774618250835,-500.0,0.00041643,17]
[418947987,1774618250845,-510.05567156,0.00041643,17]
[418947988,1774618250856,-500.0,0.00041643,17]
[418947989,1774618250997,-500.0,0.00041643,17]
[418947990,1774618251008,-500.0,0.00041643,17]
[418947991,1774618251019,-500.0,0.00041643,7]
[418947992,1774618251028,-500.0,0.00041643,17]
[418947993,1774618251039,-500.0,0.00041643,17]
[418947994,1774618251048,-500.0,0.00041643,17]
[418947995,1774618251059,-500.0,0.00041643,17]
[418947996,1774618251068,-500.0,0.00041643,17]
[418947997,1774618251077,-253.30602228,0.00041643,17]
[418947998,1774618251087,-500.0,0.00041643,17]
[418947999,1774618251096,-500.0,0.00041643,17]
[418948000,1774618251106,-500.0,0.00041643,17]
[418948001,1774618251116,-535.27081112,0.00041643,17]
[418948002,1774618251126,-635.98596329,0.00041643,17]
[418948003,1774618251135,-500.0,0.00041643,17]
[418948004,1774618251145,-596.13,0.00041643,17]
[418948005,1774618251155,-500.0,0.00041643,17]
[418948006,1774618251164,-500.0,0.00041643,17]
[418948007,1774618251173,-500.0,0.00041643,17]
[418948008,1774618251183,-532.65485501,0.00041643,17]
[418948009,1774618251192,-511.26795057,0.00041643,17]
[418948010,1774618251202,-500.0,0.00041643,17]
[418948011,1774618251213,-536.25102552,0.00041643,17]
[418948012,1774618251223,-476.55718965,0.00041643,17]
[418948013,1774618251233,-500.0,0.00041643,17]
[418948014,1774618251243,-507.52602021,0.00041643,17]
[418948015,1774618251252,-511.60997183,0.00041643,17]
[418948016,1774618251261,-500.0,0.00041643,7]
[418948017,1774618251270,-500.0,0.00041643,17]
[418948018,1774618251280,-511.99321589,0.00041643,17]
[418948019,1774618251289,-500.0,0.00041643,17]
[418948020,1774618251298,-525.47443417,0.00041643,17]
[418948021,1774618251308,-514.38692887,0.00041643,17]
[418948022,1774618251317,-500.0,0.00041643,17]
[418948023,1774618251326,-1066.34,0.00041643,17]
[418948024,1774618251335,-518.75485964,0.00041643,17]
[418948025,1774618251345,-500.0,0.00041643,17]
[418948026,1774618251354,-507.38028002,0.00041643,17]
[418948027,1774618251363,-534.04810927,0.00041643,17]
[418948028,1774618251372,-288.84419926,0.00041643,17]
[418948029,1774618251382,-500.0,0.00041643,17]
[418948030,1774618251392,-500.0,0.00041643,17]
[418948031,1774618251401,-500.0,0.00041643,17]
[418948032,1774618251411,-500.0,0.00041643,17]
[418948033,1774618251421,-500.0,0.00041643,17]
[418948034,1774618251430,-191.1266,0.00041643,17]
[418948035,1774618251440,-533.43506517,0.00041643,17]
[418948036,1774618251450,-512.99310505,0.00041643,17]
[418948037,1774618251461,-500.0,0.00041643,17]
[418948038,1774618251471,-472.13836089,0.00041643,17]
[418948039,1774618251480,-150.4697365,0.00041643,17]
[418948040,1774618251490,-207.66320404,0.00041643,17]
[418948041,1774618251500,-500.0,0.00041643,17]
[418948042,1774618251509,-500.0,0.00041643,17]
[418948043,1774618251519,-888.24,0.00041643,17]
[418948044,1774618251529,-2057.18,0.00041643,17]
[418948045,1774618251539,-225.34397605,0.00041643,17]
[418948046,1774618251548,-500.0,0.00041643,17]
[418948047,1774618251559,-492.52023368,0.00041643,17]
[418948048,1774618251568,-500.0,0.00041643,17]
[418948049,1774618251577,-500.0,0.00041643,17]
[418948050,1774618251586,-500.0,0.00041643,17]
[418948051,1774618251596,-190.52923504,0.00041643,17]
[418948052,1774618251605,-532.51044404,0.00041643,17]
[418948053,1774618251615,-500.0,0.00041643,17]
[418948054,1774618251626,-416.04992377,0.00041643,17]
[418948055,1774618251637,-485.0,0.00041643,17]
[418948056,1774618251648,-512.10651484,0.00041643,17]
[418948057,1774618251657,-500.0,0.00041643,17]
[418948058,1774618251667,-179.35892624,0.00041643,17]
[418948059,1774618251677,-500.0,0.00041643,7]
[418948060,1774618251686,-500.0,0.00041643,17]
[418948061,1774618251696,-521.96548183,0.00041643,17]
[418948062,1774618251705,-537.58,0.00041643,17]
[418948063,1774618251715,-500.0,0.00041643,17]
[418948064,1774618251724,-500.0,0.00041643,17]
[418948065,1774618251732,-500.0,0.00041643,17]
[418948066,1774618251742,-500.0,0.00041643,17]
[418948067,1774618251751,-535.00203789,0.00041643,17]
[418948068,1774618251760,-500.0,0.00041643,17]
[418948069,1774618251769,-519.50728187,0.00041643,17]
[418948070,1774618251779,-506.17405094,0.00041643,17]
[418948071,1774618251788,-509.96164322,0.00041643,17]
[418948072,1774618251797,-541.18287068,0.00041643,17]
[418948073,1774618251806,-500.0,0.00041643,17]
[418948074,1774618251815,-567.04,0.00041643,2]
[418948075,1774618251825,-520.13492828,0.00041643,17]
[418948076,1774618251834,-516.49350419,0.00041643,17]
[418948077,1774618251843,-500.0,0.00041643,17]
[418948078,1774618251852,-516.45287087,0.00041643,17]
[418948079,1774618251861,-500.0,0.00041643,17]
[418948080,1774618251876,-558.21800492,0.00041643,17]
[418948081,1774618251885,-513.62739931,0.00041643,17]
[418948082,1774618251895,-500.29766906,0.00041643,2]
[418948083,1774618251904,-500.0,0.00041643,17]
[418948084,1774618251913,-500.0,0.00041643,17]
[418948085,1774618251922,-1532.42,0.00041643,2]
[418948086,1774618251932,-519.45434176,0.00041643,17]
[418948087,1774618251941,-660.66,0.00041643,17]
[418948088,1774618251951,-514.84328434,0.00041643,17]
[418948089,1774618251960,-163.13594536,0.000417,120]
[418948090,1774618251969,-3984.0,0.00041736,2]
[418948091,1774618251979,-636.1,0.00041836,30]
[418948092,1774618251988,-2542.34942924,0.00041855,28]
[418948093,1774618251997,-524.74738088,0.00041917,17]
[418948094,1774618252006,-425.50824584,0.00041917,17]
[418948095,1774618252016,-500.0,0.00041917,17]
[418948096,1774618252026,-500.0,0.00041917,17]
[418948097,1774618252036,-500.0,0.00041917,17]
[418948098,1774618252046,-500.0,0.00041917,17]
[418948099,1774618252056,-500.0,0.00041917,17]
[418948100,1774618252066,-500.0,0.00041917,17]
[418948101,1774618252075,-500.0,0.00041917,17]
[418948102,1774618252084,-500.0,0.00041917,17]
[418948103,1774618252093,-500.0,0.00041917,17]
[418948104,1774618252104,-546.03,0.00041917,17]
[418948105,1774618252114,-500.0,0.00041917,17]
[418948106,1774618252125,-500.0,0.00041917,17]
[418948107,1774618252135,-500.0,0.00041917,17]
[418948108,1774618252145,-500.0,0.00041917,17]
[418948109,1774618252154,-500.0,0.00041917,17]
[418948110,1774618252164,-500.0,0.00041917,7]
[418948111,1774618252174,-620.9371299,0.00041917,17]
[418948112,1774618252184,-500.0,0.00041917,17]
[418948113,1774618252193,-500.0,0.00041917,17]
[418948114,1774618252202,-500.0,0.00041917,17]
[418948115,1774618252212,-342.27843751,0.00041917,17]
[418948116,1774618252222,-500.0,0.00041917,17]
[418948117,1774618252232,-500.0,0.00041917,17]
[418948118,1774618252241,-500.0,0.00041917,17]
[418948119,1774618252251,-500.0,0.00041917,17]
[418948120,1774618252260,-596.13,0.00041917,17]
[418948121,1774618252269,-500.0,0.00041917,17]
[418948122,1774618252279,-500.0,0.00041917,17]
[418948123,1774618252288,-500.0,0.00041917,17]
[418948124,1774618252298,-598.68682294,0.00041917,17]
[418948125,1774618252308,-500.0,0.00041917,17]
[418948126,1774618252317,-500.0,0.00041917,7]
[418948127,1774618252327,-500.0,0.00041917,17]
[418948128,1774618252336,-500.0,0.00041917,17]
[418948129,1774618252346,-500.0,0.00041917,17]
[418948130,1774618252355,-1066.34,0.00041917,17]
[418948131,1774618252365,-630.13060161,0.00041917,17]
[418948132,1774618252375,-500.0,0.00041917,17]
[418948133,1774618252385,-544.75901834,0.00041917,17]
[418948134,1774618252395,-528.58029302,0.00041917,17]
[418948135,1774618252405,-500.0,0.00041917,17]
[418948136,1774618252414,-500.0,0.00041917,17]
[418948137,1774618252424,-500.0,0.00041917,17]
[418948138,1774618252433,-500.0,0.00041917,17]
[418948139,1774618252443,-500.0,0.00041917,17]
[418948140,1774618252454,-888.24,0.00041917,17]
[418948141,1774618252464,-2057.18,0.00041917,17]
[418948142,1774618252473,-500.0,0.00041917,17]
[418948143,1774618252483,-500.0,0.00041917,17]
[418948144,1774618252492,-232.33040324,0.00041917,17]
[418948145,1774618252501,-500.0,0.00041917,17]
[418948146,1774618252512,-500.0,0.00041917,17]
[418948147,1774618252521,-500.0,0.00041917,17]
[418948148,1774618252531,-500.0,0.00041917,7]
[418948149,1774618252540,-632.99186743,0.00041917,17]
[418948150,1774618252550,-537.58,0.00041917,17]
[418948151,1774618252560,-273.0701467,0.00041917,17]
[418948152,1774618252569,-500.0,0.00041917,17]
[418948153,1774618252579,-500.0,0.00041917,17]
[418948154,1774618252588,-500.0,0.00041917,17]
[418948155,1774618252598,-500.0,0.00041917,17]
[418948156,1774618252608,-500.0,0.00041917,17]
[418948157,1774618252617,-567.04,0.00041917,2]
[418948158,1774618252627,-500.0,0.00041917,17]
[418948159,1774618252636,-500.0,0.00041917,17]
[418948160,1774618252647,-513.57506338,0.00041917,17]
[418948161,1774618252656,-1532.42,0.00041917,2]
[418948162,1774618252666,-660.66,0.00041917,17]
[418948163,1774618252676,-165.86,0.00041961,30]
[418948164,1774618252685,-155.92499999,0.00041974,15]
[418948165,1774618252694,-1552.28,0.00042,120]
[418948166,1774618252704,-1000.0,0.00042,120]
[418948167,1774618252714,-1000.0,0.00042,120]
[418948168,1774618252723,-1000.0,0.00042,120]
[418948169,1774618252733,-195.1672,0.00042052,2]
[418948170,1774618252742,-898.2,0.00042053,2]
[418948171,1774618252751,-913.6426266,0.00042053,2]
[418948172,1774618252760,-898.2,0.00042053,2]
[418948173,1774618252769,-913.6426266,0.00042053,2]
[418948174,1774618252779,-898.2,0.00042053,2]
[418948175,1774618252788,-913.6426266,0.00042053,2]
[418948176,1774618252797,-898.2,0.00042053,2]
[418948177,1774618252806,-913.6426266,0.00042053,2]
[418948178,1774618252816,-250.0,0.00042055,91]
[418948179,1774618252826,-166.66,0.00042063,30]
[418948180,1774618252836,-1000.0,0.0004208,21]
[418948181,1774618252846,-151.38621408,0.00042089,30]
[418948182,1774618252855,-150.0,0.00042089,30]
[418948183,1774618252864,-150.0,0.00042089,30]
[418948184,1774618252875,-175.02395778,0.00042141,6]
[418948185,1774618252884,-150.0,0.00042173,120]
[418948186,1774618252896,-500.0,0.00042191,17]
[418948187,1774618252906,-500.0,0.00042191,17]
[418948188,1774618252915,-500.0,0.00042191,17]
[418948189,1774618252924,-500.0,0.00042191,17]
[418948190,1774618252934,-500.0,0.00042191,17]
[418948191,1774618252945,-500.0,0.00042191,17]
[418948192,1774618252955,-500.0,0.00042191,17]
[418948193,1774618252964,-500.0,0.00042191,17]
[418948194,1774618252974,-500.0,0.00042191,17]
[418948195,1774618252983,-546.03,0.00042191,17]
[418948196,1774618252992,-500.0,0.00042191,17]
[418948197,1774618253001,-500.0,0.00042191,17]
[418948198,1774618253010,-500.0,0.00042191,17]
[418948199,1774618253020,-500.0,0.00042191,17]
[418948200,1774618253030,-500.0,0.00042191,17]
[418948201,1774618253039,-500.0,0.00042191,7]
[418948202,1774618253049,-500.0,0.00042191,17]
[418948203,1774618253059,-500.0,0.00042191,17]
[418948204,1774618253069,-500.0,0.00042191,17]
[418948205,1774618253078,-500.0,0.00042191,17]
[418948206,1774618253088,-500.0,0.00042191,17]
[418948207,1774618253098,-587.82253033,0.00042191,17]
[418948208,1774618253107,-174.57436021,0.00042191,17]
[418948209,1774618253116,-596.13,0.00042191,17]
[418948210,1774618253126,-500.0,0.00042191,17]
[418948211,1774618253135,-500.0,0.00042191,17]
[418948212,1774618253146,-500.0,0.00042191,17]
[418948213,1774618253156,-500.0,0.00042191,17]
[418948214,1774618253166,-500.0,0.00042191,7]
[418948215,1774618253175,-500.0,0.00042191,17]
[418948216,1774618253184,-500.0,0.00042191,17]
[418948217,1774618253194,-500.0,0.00042191,17]
[418948218,1774618253205,-1066.34,0.00042191,17]
[418948219,1774618253214,-248.21694601,0.00042191,17]
[418948220,1774618253224,-500.0,0.00042191,17]
[418948221,1774618253234,-500.0,0.00042191,17]
[418948222,1774618253243,-500.0,0.00042191,17]
[418948223,1774618253252,-500.0,0.00042191,17]
[418948224,1774618253262,-594.91180199,0.00042191,17]
[418948225,1774618253271,-888.24,0.00042191,17]
[418948226,1774618253281,-2057.18,0.00042191,17]
[418948227,1774618253290,-500.0,0.00042191,17]
[418948228,1774618253300,-500.0,0.00042191,17]
[418948229,1774618253309,-500.0,0.00042191,17]
[418948230,1774618253320,-500.0,0.00042191,17]
[418948231,1774618253329,-500.0,0.00042191,17]
[418948232,1774618253339,-329.50794238,0.00042191,7]
[418948233,1774618253348,-537.58,0.00042191,17]
[418948234,1774618253357,-500.0,0.00042191,17]
[418948235,1774618253367,-500.0,0.00042191,17]
[418948236,1774618253376,-246.1561503,0.00042191,17]
[418948237,1774618253385,-500.0,0.00042191,17]
[418948238,1774618253396,-500.0,0.00042191,17]
[418948239,1774618253406,-567.04,0.00042191,2]
[418948240,1774618253416,-500.0,0.00042191,17]
[418948241,1774618253425,-500.0,0.00042191,17]
[418948242,1774618253435,-1532.42,0.00042191,2]
[418948243,1774618253444,-660.66,0.00042191,17]
[418948244,1774618253454,-825.0,0.00042219,30]
[418948245,1774618253464,-5000.0,0.00042222,2]
[418948246,1774618253473,-200.0,0.00042238,120]
[418948247,1774618253483,-328.55497,0.00042293,120]
[418948248,1774618253492,-200.0,0.00042299,60]
[418948249,1774618253502,-381.42143011,0.00042299,60]
[418948250,1774618253511,-200.0,0.00042299,60]
[418948251,1774618253521,-500.0,0.00042299,60]
[418948252,1774618253530,-500.0,0.00042299,60]
[418948253,1774618253539,-500.0,0.00042299,60]
[418948254,1774618253548,-500.0,0.00042299,60]
[418948255,1774618253557,-500.0,0.00042299,60]
[418948256,1774618253566,-214.0286415,0.00042299,60]
[418948257,1774618253576,-151.0,0.00042299,60]
[418948258,1774618253585,-156.587,0.00042299,60]
[418948259,1774618253595,-162.380719,0.00042299,60]
[418948260,1774618253605,-168.3888056,0.00042299,60]
[418948261,1774618253614,-174.61919141,0.00042299,60]
[418948262,1774618253624,-181.08010149,0.00042299,60]
[418948263,1774618253633,-187.78006525,0.00042299,60]
[418948264,1774618253642,-194.72792766,0.00042299,60]
[418948265,1774618253656,-160.0,0.00042299,60]
[418948266,1774618253667,-201.93286099,0.00042299,60]
[418948267,1774618253676,-160.0,0.00042299,60]
[418948268,1774618253686,-209.40437684,0.00042299,60]
[418948269,1774618253695,-294.15828139,0.00042299,60]
[418948270,1774618253704,-217.15233878,0.00042299,60]
[418948271,1774618253714,-225.18697532,0.00042299,60]
[418948272,1774618253723,-233.51889341,0.00042299,60]
[418948273,1774618253732,-316.81660546,0.00042299,60]
[418948274,1774618253742,-243.18797536,0.00042299,60]
[418948275,1774618253752,-500.0,0.00042299,60]
[418948276,1774618253761,-500.0,0.00042299,60]
[418948277,1774618253771,-500.0,0.00042299,60]
[418948278,1774618253781,-500.0,0.00042299,60]
[418948279,1774618253791,-250.0,0.00042299,60]
[418948280,1774618253800,-500.0,0.00042299,60]
[418948281,1774618253810,-250.0,0.00042299,60]
[418948282,1774618253819,-500.0,0.00042299,60]
[418948283,1774618253828,-250.0,0.00042299,60]
[418948284,1774618253837,-500.0,0.00042299,60]
[418948285,1774618253846,-250.0,0.00042299,60]
[418948286,1774618253856,-500.0,0.00042299,60]
[418948287,1774618253866,-250.0,0.00042299,60]
[418948288,1774618253875,-250.0,0.00042299,60]
[418948289,1774618253883,-500.0,0.00042299,60]
[418948290,1774618253892,-500.0,0.00042299,60]
[418948291,1774618253904,-500.0,0.00042299,60]
[418948292,1774618253913,-500.0,0.00042299,60]
[418948293,1774618253923,-500.0,0.00042299,60]
[418948294,1774618253932,-500.0,0.00042299,60]
[418948295,1774618253942,-151.0,0.00042299,60]
[418948296,1774618253951,-151.0,0.00042299,60]
[418948297,1774618253960,-500.0,0.00042299,60]
[418948298,1774618253970,-151.0,0.00042299,60]
[418948299,1774618253979,-500.0,0.00042299,60]
[418948300,1774618253989,-500.0,0.00042299,60]
[418948301,1774618253998,-151.0,0.00042299,60]
[418948302,1774618254007,-500.0,0.00042299,60]
[418948303,1774618254016,-151.0,0.00042299,60]
[418948304,1774618254026,-500.0,0.00042299,60]
[418948305,1774618254035,-151.0,0.00042299,60]
[418948306,1774618254044,-500.0,0.00042299,60]
[418948307,1774618254054,-151.0,0.00042299,60]
[418948308,1774618254063,-151.0,0.00042299,60]
[418948309,1774618254072,-151.0,0.00042299,60]
[418948310,1774618254082,-151.0,0.00042299,60]
[418948311,1774618254091,-151.0,0.00042299,60]
[418948312,1774618254100,-215.95447082,0.00042299,60]
[418948313,1774618254109,-296.19151046,0.00042299,60]
[418948314,1774618254119,-200.0,0.00042299,60]
[418948315,1774618254128,-151.0,0.00042299,60]
[418948316,1774618254137,-156.587,0.00042299,60]
[418948317,1774618254146,-162.380719,0.00042299,60]
[418948318,1774618254155,-168.3888056,0.00042299,60]
[418948319,1774618254165,-174.61919141,0.00042299,60]
[418948320,1774618254174,-181.08010149,0.00042299,60]
[418948321,1774618254183,-187.78006525,0.00042299,60]
[418948322,1774618254306,-194.72792766,0.00042299,60]
[418948323,1774618254316,-269.46845683,0.00042299,60]
[418948324,1774618254326,-201.93286099,0.00042299,60]
[418948325,1774618254335,-209.40437684,0.00042299,60]
[418948326,1774618254344,-217.15233878,0.00042299,60]
[418948327,1774618254353,-225.18697532,0.00042299,60]
[418948328,1774618254363,-233.51889341,0.00042299,60]
[418948329,1774618254372,-242.15909246,0.00042299,60]
[418948330,1774618254381,-251.11897888,0.00042299,60]
[418948331,1774618254391,-260.4103811,0.00042299,60]
[418948332,1774618254403,-279.9045709,0.00042299,60]
[418948333,1774618254412,-270.0455652,0.00042299,60]
[418948334,1774618254422,-233.22273459,0.00042299,60]
[418948335,1774618254432,-500.0,0.00042299,60]
[418948336,1774618254442,-500.0,0.00042299,60]
[418948337,1774618254451,-500.0,0.00042299,60]
[418948338,1774618254461,-500.0,0.00042299,60]
[418948339,1774618254470,-500.0,0.00042299,60]
[418948340,1774618254479,-500.0,0.00042299,60]
[418948341,1774618254488,-500.0,0.00042299,60]
[418948342,1774618254498,-500.0,0.00042299,60]
[418948343,1774618254507,-500.0,0.00042299,60]
[418948344,1774618254516,-500.0,0.00042299,60]
[418948345,1774618254526,-500.0,0.00042299,60]
[418948346,1774618254536,-1030.0,0.00042299,60]
[418948347,1774618254545,-1068.11,0.00042299,60]
[418948348,1774618254555,-484.32453064,0.00042299,60]
[418948349,1774618254564,-620.0,0.00042299,60]
[418948350,1774618254574,-642.94,0.00042299,60]
[418948351,1774618254584,-666.72878,0.00042299,60]
[418948352,1774618254593,-691.39774486,0.00042299,60]
[418948353,1774618254602,-716.97946142,0.00042299,60]
[418948354,1774618254612,-743.50770149,0.00042299,60]
[418948355,1774618254621,-771.01748645,0.00042299,60]
[418948356,1774618254631,-799.54513345,0.00042299,60]
[418948357,1774618254640,-829.12830338,0.00042299,60]
[418948358,1774618254652,-859.80605061,0.00042299,60]
[418948359,1774618254661,-891.61887448,0.00042299,60]
[418948360,1774618254671,-924.60877284,0.00042299,60]
[418948361,1774618254680,-958.81929743,0.00042299,60]
[418948362,1774618254690,-994.29561144,0.00042299,60]
[418948363,1774618254699,-1031.08454906,0.00042299,60]
[418948364,1774618254709,-1069.23467738,0.00042299,60]
[418948365,1774618254718,-1108.79636044,0.00042299,60]
[418948366,1774618254727,-1000.0,0.00042299,30]
[418948367,1774618254736,-43011.94928771,0.000423,60]
[418948424,1774619358269,-3214.0,0.00024535,2]
[418948425,1774619358290,-150.0,0.00024658,2]
[418948426,1774619358311,-297.19097519,0.00029981,2]
[418948427,1774619372145,-2169.80902481,0.00029981,2]
[418948428,1774619372167,-671.60347261,0.00030422,120]
[418948429,1774619434725,-151.0,0.00024968,2]
[418948430,1774619434735,-151.0,0.00024986,2]
[418948431,1774619434744,-60.11076677,0.00025223,2]
[418948432,1774619434757,-90.88923323,0.00025223,2]
[418948433,1774619434767,-151.0,0.00025294,2]
[418948434,1774619434776,-200.0,0.00029981,2]
[418948435,1774619434786,-280.95848264,0.00029981,2]
[418948436,1774619434798,-930.65117568,0.00029981,2]
[418948437,1774619434813,-1255.39034168,0.00029981,2]
[418948438,1774619434823,-282.58211098,0.00030422,120]
[418948439,1774619434852,-45.81441641,0.00030422,120]
[418948440,1774619434862,-1000.0,0.00030422,120]
[418948441,1774619434871,-1000.0,0.00030422,120]
[418948442,1774619434880,-1000.0,0.00030422,120]
[418948443,1774619434891,-1000.0,0.00030422,120]
[418948444,1774619434899,-1000.0,0.00030422,120]
[418948445,1774619434908,-1000.0,0.00030422,120]
[418948446,1774619434920,-1000.0,0.00030422,120]
[418948447,1774619434930,-1000.0,0.00030422,120]
[418948448,1774619434940,-1000.0,0.00030422,120]
[418948449,1774619434949,-1000.0,0.00030422,120]
[418948450,1774619434958,-1000.0,0.00030422,120]
[418948451,1774619434967,-1000.0,0.00030422,120]
[418948452,1774619434976,-917.336,0.00030422,120]
[418948453,1774619434985,-150.6665,0.00031009,30]
[418948454,1774619434995,-150.6665,0.00031021,30]
[418948455,1774619435004,-272.53730534,0.00031023,2]
[418948456,1774619435014,-180.801,0.00031047,30]
[418948457,1774619435022,-150.0,0.00032981,2]
[418948458,1774619435031,-2467.0,0.00032981,2]
[418948459,1774619435040,-157.0,0.00034362,30]
[418948460,1774619435049,-158.0,0.00035362,30]
[418948461,1774619435058,-333.136,0.00035981,2]
[418948462,1774619435067,-203.10182756,0.000372,120]
[418948463,1774619435076,-2000.0,0.000375,2]
[418948464,1774619435085,-150.0,0.00038356,2]
[418948466,1774619435094,-152.0,0.00038356,2]
[418948467,1774619435103,-166.66,0.00038449,30]
[418948469,1774619435113,-166.66,0.00039258,30]
[418948470,1774619435122,-5046.51,0.00039293,2]
[418948471,1774619435131,-463.781,0.00039335,120]
[418948472,1774619435140,-5000.0,0.00039479,120]
[418948473,1774619435148,-5363.42358747,0.00039744,2]
[418948474,1774619435158,-8399.08066486,0.0004,120]
[418948475,1774619435167,-166.66,0.00040068,30]
[418948476,1774619435176,-534.41,0.00040125,2]
[418948477,1774619435186,-304.0,0.00040435,2]
[418948478,1774619435196,-165.87,0.00040833,2]
[418948479,1774619435205,-1451.4337,0.0004085,2]
[418948480,1774619435215,-166.66,0.00040877,30]
[418948481,1774619435223,-175.66958119,0.00040899,15]
[418948482,1774619435233,-1858.182,0.000409,59]
[418948483,1774619435242,-185.47,0.000409,59]
[418948484,1774619435251,-4370.14,0.0004094,10]
[418948485,1774619435260,-6823.24,0.0004094,10]
[418948486,1774619435269,-5686.04,0.0004094,10]
[418948487,1774619435278,-118.04991715,0.0004095,60]
[418948488,1774619435291,-476.08351096,0.0004095,60]
[418948489,1774619435302,-835.60817854,0.0004095,60]
[418948490,1774619435313,-267.09849734,0.0004095,60]
[418948491,1774619435333,-501.0,0.0004095,60]
[418948493,1774619438684,-200.0,0.00037949,2]
[418948494,1774619438694,-4738.36,0.0004094,10]
[418948495,1774619438703,-1705.84,0.0004095,60]
[418948496,1774619438715,-644.61122412,0.0004095,60]
[418948497,1774619438826,-7642.8448883,0.0004095,60]
[418948498,1774619438837,-2659.2988573,0.0004095,60]
[418948499,1774619438858,-2500.58094574,0.0004095,60]
[418948519,1774619440705,-98904.26852466,0.0004095,60]
[418948520,1774619440995,-1530.69196928,0.00038546,7]
[418948521,1774619441004,-1774.30803072,0.0004095,60]
[418948522,1774619441015,-281.649,0.0004095,60]
[418948523,1774619441113,-3269.56101338,0.0004095,60]
[418948524,1774619441124,-1558.81911971,0.0004095,60]
[418948525,1774619441136,-49212.83320932,0.0004095,60]
[418948526,1774619441147,-10411.22949497,0.0004095,60]
[418948527,1774619441158,-817.90171655,0.0004095,60]
[418948528,1774619441179,-2000.0,0.0004095,60]
[418948529,1774619441190,-457.87523132,0.0004095,60]
[418948530,1774619441203,-716.53863992,0.0004095,60]
[418948531,1774619441212,-1271.17471462,0.00040995,28]
[418948532,1774619441222,-301.13225467,0.00040999,2]
[418948533,1774619441231,-3572.97501517,0.00041,120]
[418948534,1774619441463,-789.47421459,0.00041,120]
[418948535,1774619441475,-448.13622011,0.00041,120]
[418948562,1774619450570,-205.362,0.00032189,7]
[418948563,1774619450580,-25377.22524032,0.00041,120]
[418948564,1774619450621,-182.09492,0.00041,120]
[418948565,1774619450633,-267.84473,0.00041,120]
[418948566,1774619450644,-19362.24965981,0.00041,120]
[418948567,1774619450654,-500.0,0.00041095,17]
[418948568,1774619450663,-500.0,0.00041095,17]
[418948569,1774619450673,-500.0,0.00041095,17]
[418948570,1774619450685,-500.0,0.00041095,17]
[418948571,1774619450695,-500.0,0.00041095,17]
[418948572,1774619450707,-500.0,0.00041095,17]